bitfinex/quotes_ETHUSD_20250623
["timestamp","ask_amount","ask_price","bid_price","bid_amount"]
[1750652355172,17.15045392,2239.9,2239.5,0.7898]
[1750652355468,24.38045392,2239.9,2239.6,0.0615]
[1750652355966,14.38045392,2239.9,2239.6,0.0615]
[1750652356162,14.38045392,2239.9,2239.6,0.59764257]
[1750652357247,7.15045392,2240.0,2239.6,0.59764257]
[1750652357444,7.15045392,2240.0,2239.7,0.0615]
[1750652357646,7.15045392,2240.0,2239.6,5.04584466]
[1750652357972,7.15045392,2240.0,2239.7,0.0615]
[1750652358174,7.15045392,2240.0,2239.8,0.7975]
[1750652358978,1.895,2240.2,2239.8,0.859]
[1750652358979,7.15045392,2240.2,2239.8,0.859]
[1750652359159,14.37945392,2240.2,2239.8,0.859]
[1750652359487,7.15045392,2240.0,2239.8,0.859]
[1750652360552,7.15045392,2240.0,2239.8,0.7975]
[1750652360876,7.15045392,2240.0,2239.9,0.0615]
[1750652361083,14.37845392,2240.2,2239.9,0.0615]
[1750652361271,14.37845392,2240.2,2240.0,0.0615]
[1750652362166,14.37845392,2240.2,2239.9,0.60033407]
[1750652362482,14.37845392,2240.2,2239.9,0.0615]
[1750652362779,14.37845392,2240.2,2239.8,0.7975]
[1750652362984,7.15045392,2240.1,2239.9,0.0615]
[1750652363780,7.15045392,2240.1,2239.8,0.7975]
[1750652364150,7.15045392,2240.1,2239.9,0.0615]
[1750652364350,7.15045392,2240.1,2239.9,0.65737338]
[1750652365083,7.15045392,2240.1,2239.9,0.59587338]
[1750652365267,7.15045392,2240.1,2240.0,0.0615]
[1750652365796,0.015,2240.4,2239.9,0.59587338]
[1750652365999,14.37845392,2240.3,2240.0,0.0615]
[1750652367300,7.15045392,2240.1,2239.8,0.7975]
[1750652367462,7.15045392,2240.1,2239.8,0.859]
[1750652368765,7.15045392,2239.9,2239.8,0.859]
[1750652368967,7.15045392,2239.9,2239.8,1.3830075]
[1750652371798,7.15045392,2240.1,2239.8,1.3830075]
[1750652371966,7.15045392,2240.1,2239.9,0.0615]
[1750652373023,7.15045392,2240.1,2239.8,1.3830075]
[1750652376123,7.15045392,2240.1,2239.9,0.0615]
[1750652376289,7.15045392,2240.1,2240.0,0.0615]
[1750652378318,7.15045392,2240.1,2239.9,0.96727817]
[1750652379589,7.15045392,2240.1,2239.9,0.90577817]
[1750652379906,7.15045392,2240.1,2240.0,0.0615]
[1750652380974,7.15045392,2240.1,2239.9,0.90577817]
[1750652381170,14.30090784,2240.1,2239.5,1.24517973]
[1750652381376,7.15045392,2239.7,2239.6,0.0615]
[1750652382138,7.15045392,2239.9,2239.6,0.10614752]
[1750652382401,7.15045392,2239.9,2239.6,4.52655688]
[1750652382604,7.15045392,2239.9,2239.8,0.0619]
[1750652388551,7.15045392,2239.9,2239.8,0.0172591]
[1750652390246,14.37645392,2240.1,2239.8,0.0172591]
[1750652391350,7.21015392,2240.1,2239.7,0.63907366]
[1750652395433,7.15045392,2240.1,2239.7,0.63907366]
[1750652395632,7.15045392,2240.1,2239.8,0.0619]
[1750652396336,7.15045392,2240.1,2239.7,0.57717366]
[1750652396531,7.15045392,2240.1,2239.7,0.63907366]
[1750652397355,7.21015392,2240.1,2239.7,0.63907366]
[1750652397549,7.21015392,2240.1,2239.7,0.57717366]
[1750652397850,7.15045392,2240.1,2239.7,0.57717366]
[1750652398055,0.0597,2240.0,2239.7,0.57717366]
[1750652399664,0.0597,2240.0,2239.6,7.78153644]
[1750652399838,7.15045392,2240.1,2239.6,7.71963644]
[1750652400153,7.15045392,2240.1,2239.7,0.0619]
[1750652400154,7.21015392,2240.1,2239.7,0.0619]
[1750652400557,7.15045392,2240.1,2239.7,4.52670991]
[1750652400756,7.15045392,2240.1,2239.7,0.0619]
[1750652400968,7.21015392,2240.1,2239.7,0.0619]
[1750652401171,7.21015392,2240.1,2239.7,0.0172591]
[1750652401375,0.0616,2240.0,2239.7,0.0172591]
[1750652402575,7.15045392,2240.2,2239.6,7.67498317]
[1750652402772,0.015,2240.4,2239.8,0.55]
[1750652402979,0.015,2240.4,2240.0,0.55]
[1750652403284,0.015,2240.4,2240.3,4.52558789]
[1750652403454,0.015,2240.4,2240.3,7.78021682]
[1750652404268,0.015,2240.4,2240.3,8.55261682]
[1750652404571,0.015,2240.4,2240.3,8.50798789]
[1750652404776,0.015,2240.4,2240.3,7.14517539]
[1750652404958,0.015,2240.4,2240.3,7.18980034]
[1750652405141,0.015,2240.4,2240.3,7.14517539]
[1750652405542,0.015,2240.4,2240.3,2.0695875]
[1750652406447,0.015,2240.4,2240.3,0.7724]
[1750652406654,0.0766,2240.4,2240.3,0.7724]
[1750652406874,0.0766,2240.4,2240.1,0.7731]
[1750652407560,0.0766,2240.4,2239.9,5.69660227]
[1750652407762,0.0766,2240.4,2239.9,5.75850227]
[1750652408080,0.0766,2240.4,2240.0,2.25511241]
[1750652408276,0.015,2240.4,2240.0,2.25511241]
[1750652408478,0.0616,2240.3,2240.0,2.25511241]
[1750652408981,0.0616,2240.3,2240.0,2.29974942]
[1750652409184,0.0616,2240.3,2240.0,2.36164942]
[1750652409482,0.0616,2240.3,2240.0,0.10653701]
[1750652409985,0.0616,2240.3,2240.0,0.0619]
[1750652410181,0.0616,2240.3,2239.9,1.29408427]
[1750652411677,0.0616,2240.3,2240.0,0.04463706]
[1750652411996,0.0616,2240.3,2239.9,5.69666642]
[1750652412301,0.0766,2240.4,2240.0,0.67620372]
[1750652412693,0.0766,2240.4,2240.1,0.058]
[1750652412892,0.015,2240.4,2240.1,0.058]
[1750652415609,0.0716,2240.4,2240.0,0.62766664]
[1750652416506,0.015,2240.4,2240.0,0.61430383]
[1750652416806,0.015,2240.4,2240.2,0.058]
[1750652416975,0.015,2240.4,2240.3,0.058]
[1750652418406,0.015,2240.4,2240.2,0.8072]
[1750652419319,0.015,2240.4,2240.2,0.7625591]
[1750652419685,0.015,2240.4,2240.1,0.6310964]
[1750652419887,0.015,2240.4,2240.2,0.83052612]
[1750652420310,0.0566,2240.3,2240.0,0.04463337]
[1750652421322,0.0566,2240.3,2239.9,0.058]
[1750652421506,0.0566,2240.3,2240.0,0.04463829]
[1750652421689,0.0566,2240.3,2240.0,0.10263829]
[1750652423500,0.0566,2240.3,2240.0,0.058]
[1750652423835,0.0566,2240.3,2239.9,0.90093839]
[1750652424035,0.0566,2240.3,2239.9,3.11647392]
[1750652424230,0.0566,2240.3,2239.9,3.07183553]
[1750652424627,0.0566,2240.3,2239.9,7.53628697]
[1750652424819,0.015,2240.4,2240.0,4.46427514]
[1750652425203,0.015,2240.4,2240.1,4.56669624]
[1750652425403,0.015,2240.4,2240.2,0.51466962]
[1750652425712,0.015,2240.4,2240.3,5.86728789]
[1750652426637,0.015,2240.4,2240.3,1.4036]
[1750652427235,0.015,2240.4,2240.3,5.86728789]
[1750652429314,0.015,2240.4,2240.3,9.07728789]
[1750652429513,0.015,2240.4,2240.3,10.47708488]
[1750652429838,0.015,2240.4,2240.3,6.01339699]
[1750652430028,0.015,2240.4,2240.3,5.95539699]
[1750652430224,0.015,2240.4,2240.3,2.74539699]
[1750652430533,0.015,2240.4,2240.3,2.80339699]
[1750652430903,0.015,2240.4,2240.3,7.22244998]
[1750652431138,0.015,2240.4,2240.3,2.19539699]
[1750652431310,0.015,2240.4,2240.3,0.7956]
[1750652432537,0.015,2240.4,2240.2,8.13055179]
[1750652432726,0.015,2240.4,2240.2,8.18855179]
[1750652434341,0.0716,2240.4,2240.2,3.66666962]
[1750652434541,0.0716,2240.4,2240.2,3.21]
[1750652435146,0.015,2240.4,2240.2,3.21]
[1750652435455,0.015,2240.4,2240.1,3.268]
[1750652435611,0.015,2240.4,2240.2,0.04463375]
[1750652437237,0.015,2240.4,2240.1,7.73205224]
[1750652437445,0.015,2240.4,2240.2,1.21963315]
[1750652437619,0.015,2240.4,2240.2,1.26426694]
[1750652439642,0.0566,2240.3,2240.2,1.26426694]
[1750652439828,0.0566,2240.3,2240.2,1.21963315]
[1750652440140,0.0716,2240.4,2240.2,1.21963315]
[1750652440343,0.0716,2240.4,2240.1,3.20999285]
[1750652440645,7.16545392,2240.4,2239.9,5.42552838]
[1750652440846,0.0566,2240.3,2239.9,3.20999285]
[1750652441448,7.16545392,2240.4,2239.9,7.67444172]
[1750652441821,0.0566,2240.3,2239.9,7.67444172]
[1750652442423,0.0566,2240.3,2239.9,7.67442604]
[1750652442653,0.0566,2240.3,2240.0,1.5503426]
[1750652444755,0.0595,2240.3,2240.0,1.5503426]
[1750652445325,0.0595,2240.3,2239.8,15.50355647]
[1750652445623,0.0595,2240.3,2239.9,4.5245537]
[1750652447762,0.0595,2240.3,2239.9,0.0601]
[1750652448573,0.015,2240.4,2239.9,3.27009285]
[1750652448752,0.015,2240.4,2240.3,4.46368789]
[1750652448953,0.015,2240.4,2240.3,8.56642968]
[1750652449143,0.015,2240.4,2240.3,9.13190003]
[1750652449669,0.015,2240.4,2240.3,19.13190003]
[1750652453039,0.015,2240.4,2240.3,26.35190003]
[1750652455590,0.015,2240.4,2240.3,26.29988283]
[1750652459577,0.015,2240.4,2240.3,33.45033675]
[1750652463696,0.00137907,2240.4,2240.3,33.45033675]
[1750652464861,0.0595,2241.4,2241.0,0.55]
[1750652465061,0.0595,2241.4,2241.1,7.218]
[1750652465292,7.15045392,2241.3,2241.0,3.20861378]
[1750652465504,0.0595,2241.2,2241.0,3.20861378]
[1750652466762,7.15045392,2241.4,2241.0,3.20861378]
[1750652466983,0.0595,2241.3,2241.0,3.16397888]
[1750652467401,0.0595,2241.3,2241.0,3.61702973]
[1750652467990,0.0595,2241.3,2241.0,3.16397888]
[1750652469010,0.0595,2241.3,2241.1,0.04461797]
[1750652470119,7.15045392,2241.6,2241.1,4.50670122]
[1750652470120,0.0595,2241.5,2241.1,4.50670122]
[1750652470315,0.0595,2241.5,2241.1,0.04461797]
[1750652470604,0.0595,2241.5,2241.0,11.86544418]
[1750652470813,0.0595,2241.5,2241.1,3.11397888]
[1750652473334,7.15045392,2241.6,2241.1,3.11397888]
[1750652473541,0.0617,2241.5,2241.2,0.04461413]
[1750652474439,7.15045392,2241.6,2241.2,0.04461413]
[1750652474640,0.0617,2241.5,2241.2,0.04461413]
[1750652476048,7.15045392,2241.6,2241.2,0.04461413]
[1750652476253,0.0617,2241.5,2241.2,0.04461413]
[1750652477755,0.0617,2241.5,2241.1,3.11397888]
[1750652477957,0.0617,2241.5,2241.2,0.04461423]
[1750652478151,0.0617,2241.5,2241.1,3.11397888]
[1750652478663,0.0617,2241.5,2241.2,0.04461425]
[1750652479034,7.15045392,2241.6,2241.2,0.04461425]
[1750652479369,0.0617,2241.5,2241.2,0.04461425]
[1750652479726,7.15045392,2241.6,2241.2,0.04461425]
[1750652480323,0.0617,2241.5,2241.2,0.04461425]
[1750652481562,0.04476485,2241.8,2241.2,4.84197593]
[1750652481563,7.19521877,2241.8,2241.2,4.84197593]
[1750652481725,0.0617,2241.7,2241.2,9.30371949]
[1750652481925,7.15045392,2241.8,2241.2,9.31810916]
[1750652482445,7.15045392,2241.8,2241.3,4.46165349]
[1750652482446,0.0617,2241.7,2241.3,4.46165349]
[1750652482629,0.2197116,2242.2,2241.6,4.51998039]
[1750652482630,0.0617,2242.1,2241.6,4.51998039]
[1750652482828,0.0617,2242.1,2241.7,4.5644983]
[1750652483266,0.0617,2242.1,2241.7,7.57483874]
[1750652483557,0.2814116,2242.2,2241.7,7.57483874]
[1750652483739,0.2814116,2242.2,2241.8,0.059]
[1750652483939,0.2814116,2242.2,2241.8,5.73359947]
[1750652484528,0.2814116,2242.2,2241.8,1.27294779]
[1750652484740,0.2197116,2242.2,2241.8,1.27294779]
[1750652485029,0.0617,2242.1,2241.8,1.21394779]
[1750652485969,0.0617,2242.1,2241.8,1.25854844]
[1750652486180,0.0617,2242.1,2241.7,3.11397888]
[1750652487259,0.0617,2242.0,2241.7,3.11397888]
[1750652488866,0.0617,2242.1,2241.7,3.11397888]
[1750652489069,0.0617,2242.0,2241.7,3.11397888]
[1750652489362,7.15045392,2241.9,2241.7,3.11397888]
[1750652489537,0.0617,2241.8,2241.7,3.11397888]
[1750652490371,0.0617,2241.7,2241.5,1.886]
[1750652490679,0.0617,2241.7,2241.1,7.57595573]
[1750652490680,7.15045392,2241.7,2241.2,0.55]
[1750652490882,0.0617,2241.6,2241.2,0.55]
[1750652491174,7.19521877,2241.9,2241.3,4.50622732]
[1750652491372,0.04476485,2241.9,2241.4,4.46143431]
[1750652491564,0.0617,2241.9,2241.5,0.89677076]
[1750652491747,1.93076485,2242.0,2241.5,0.89677076]
[1750652492277,1.93076485,2242.0,2241.5,0.9413789]
[1750652492478,1.93076485,2242.0,2241.5,0.89677076]
[1750652492633,0.0617,2241.9,2241.5,0.89677076]
[1750652493273,0.0617,2241.9,2241.3,4.46160889]
[1750652493482,7.15045392,2241.9,2241.3,4.46160889]
[1750652493637,0.10646485,2241.8,2241.3,4.46160889]
[1750652493839,0.0617,2241.7,2241.2,8.12578036]
[1750652494478,0.0617,2241.7,2241.3,3.11397888]
[1750652494781,0.0617,2241.7,2241.3,5.28276502]
[1750652495279,7.15045392,2241.9,2241.3,5.28276502]
[1750652495280,7.15045392,2241.9,2241.3,9.74444299]
[1750652495459,0.10646485,2241.8,2241.3,9.74444299]
[1750652495778,0.0617,2241.7,2241.3,9.74444299]
[1750652496164,0.0617,2241.7,2241.3,5.28276502]
[1750652496387,0.0617,2241.7,2241.4,1.02945958]
[1750652497477,0.0617,2241.8,2241.4,5.4909457]
[1750652497852,0.0617,2241.8,2241.4,6.2900457]
[1750652498252,7.15045392,2241.9,2241.4,6.2900457]
[1750652498453,0.0446,2242.0,2241.4,6.2900457]
[1750652499137,0.0446,2242.0,2241.5,1.60345035]
[1750652499489,0.0446,2242.0,2241.5,6.06474378]
[1750652499841,0.0617,2241.9,2241.5,6.06474378]
[1750652500454,0.0446,2242.0,2241.5,6.06474378]
[1750652500660,0.0446,2242.0,2241.5,6.10935192]
[1750652500861,0.0617,2241.9,2241.6,1.10518904]
[1750652501066,0.0617,2241.9,2241.6,5.56626575]
[1750652502973,0.0617,2241.9,2241.6,5.52163085]
[1750652503174,0.0446,2242.0,2241.6,1.06055414]
[1750652503373,0.0446,2242.0,2241.5,4.46124582]
[1750652503698,0.0611,2241.9,2241.5,4.46124582]
[1750652503856,0.0446,2242.0,2241.5,4.46124582]
[1750652504061,0.0611,2241.9,2241.5,4.46124582]
[1750652504370,0.0611,2241.9,2241.4,8.37448708]
[1750652504577,0.0611,2241.9,2241.4,5.25734997]
[1750652504877,0.0446,2242.0,2241.4,9.71884036]
[1750652505356,0.2197116,2242.2,2241.8,5.23918117]
[1750652505563,0.2197116,2242.2,2241.8,5.29558117]
[1750652505778,0.2808116,2242.2,2241.8,5.29558117]
[1750652505988,0.2808116,2242.2,2241.9,0.97564462]
[1750652506186,0.2808116,2242.2,2241.9,4.0896235]
[1750652506584,0.0446,2242.1,2241.9,4.0896235]
[1750652506795,0.0611,2242.0,2241.9,3.11397888]
[1750652508699,0.0611,2242.0,2241.6,0.7532]
[1750652508911,0.0611,2242.0,2241.5,7.57523962]
[1750652509274,0.0611,2242.0,2241.5,3.11397888]
[1750652509670,7.15045392,2241.9,2241.5,3.11397888]
[1750652509893,0.0611,2241.8,2241.5,3.11397888]
[1750652510207,0.0611,2241.8,2241.5,5.3141267]
[1750652512406,7.21155392,2241.6,2241.3,1.883]
[1750652512892,7.15045392,2241.6,2241.0,22.12568147]
[1750652513297,7.15045392,2241.4,2241.0,0.45249838]
[1750652513601,0.1057,2241.1,2240.8,1.883]
[1750652513807,0.0611,2241.2,2240.9,0.26978]
[1750652514104,0.0611,2241.2,2240.9,4.73226767]
[1750652514308,0.0611,2241.2,2240.9,0.26978]
[1750652515501,7.15045392,2241.2,2240.9,0.26978]
[1750652515807,0.0611,2241.1,2240.7,5.71637246]
[1750652516683,7.15045392,2241.2,2240.7,4.90157246]
[1750652516903,0.0611,2241.1,2240.7,4.90157246]
[1750652517206,7.15045392,2241.2,2240.7,0.43877595]
[1750652517416,7.15045392,2241.2,2240.7,0.55]
[1750652517723,0.0611,2241.1,2240.7,7.2852889]
[1750652517906,7.15045392,2241.2,2240.7,2.8224039]
[1750652518116,0.0446,2241.0,2240.6,11.883]
[1750652518420,0.0611,2240.9,2240.6,11.883]
[1750652519006,0.0611,2240.9,2240.6,16.34608488]
[1750652519393,7.19505392,2241.0,2240.6,1.883]
[1750652519616,0.1057,2240.7,2240.5,0.45262451]
[1750652519826,0.0611,2240.6,2240.2,24.28277035]
[1750652520125,0.0611,2240.6,2240.3,4.46366455]
[1750652520287,0.0611,2240.6,2240.2,6.34680675]
[1750652520491,0.0611,2240.6,2240.3,1.43736068]
[1750652521022,0.0446,2240.7,2240.2,6.30225176]
[1750652521417,0.0611,2240.6,2240.2,1.8383651]
[1750652521596,0.0611,2240.6,2240.3,4.46368789]
[1750652522125,0.0446,2240.7,2240.4,4.46345064]
[1750652522694,0.0446,2240.9,2240.4,4.46345064]
[1750652522908,0.0611,2240.8,2240.4,4.46345064]
[1750652524090,0.0446,2240.9,2240.3,4.46359794]
[1750652524922,0.0611,2240.8,2240.3,4.46359794]
[1750652525130,0.0446,2240.9,2240.3,5.98396889]
[1750652525434,0.0611,2240.8,2240.3,6.04036889]
[1750652526227,0.0611,2240.8,2240.4,4.46347661]
[1750652526433,0.0611,2240.8,2240.5,4.46327866]
[1750652527120,0.1057,2240.9,2240.5,4.46327866]
[1750652527617,0.0611,2240.8,2240.4,4.46339717]
[1750652527815,0.0611,2240.8,2240.4,1.27949015]
[1750652528410,0.0611,2240.8,2240.4,5.74294178]
[1750652528608,0.0611,2240.8,2240.4,5.79934178]
[1750652530133,0.0446,2241.2,2240.6,0.55]
[1750652530437,1.9451,2241.5,2240.9,4.5187575]
[1750652530643,0.0446,2241.4,2241.1,4.4619911]
[1750652530839,0.0611,2241.5,2241.1,4.5183911]
[1750652530999,0.0446,2241.6,2241.1,4.5183911]
[1750652531205,0.0446,2241.6,2241.3,4.4616859]
[1750652531412,10.1057,2241.8,2241.3,4.5180859]
[1750652532036,0.1057,2241.8,2241.3,4.5180859]
[1750652533643,0.1057,2241.8,2241.3,0.0564]
[1750652533843,0.1057,2241.8,2241.3,4.51806765]
[1750652534015,0.1057,2241.8,2241.4,0.63198647]
[1750652534741,0.0446,2241.8,2241.4,0.68838647]
[1750652535248,0.1043,2241.8,2241.4,0.63198647]
[1750652535847,0.1043,2241.8,2241.4,1.07265837]
[1750652538049,0.1043,2241.8,2241.5,0.55343374]
[1750652538944,0.1043,2241.8,2241.5,0.50879884]
[1750652539449,0.1043,2241.8,2241.4,1.07265837]
[1750652540033,0.0446,2241.8,2241.4,1.07265837]
[1750652540219,0.0597,2241.7,2241.4,1.07265837]
[1750652540417,7.15045392,2241.5,2241.2,0.98788248]
[1750652540636,7.15045392,2241.7,2241.2,1.04428248]
[1750652540834,7.21015392,2241.7,2241.2,1.04428248]
[1750652541043,0.0446,2241.8,2241.3,0.0564]
[1750652541356,0.1043,2241.8,2241.3,1.13352694]
[1750652541544,0.1043,2241.8,2241.3,1.18992694]
[1750652542055,0.0446,2241.8,2241.3,1.18992694]
[1750652542354,7.21015392,2241.7,2241.2,3.17037888]
[1750652542535,7.21015392,2241.7,2241.2,3.21499294]
[1750652543558,7.21015392,2241.7,2241.2,3.17037888]
[1750652543725,7.21015392,2241.7,2241.2,3.21499292]
[1750652544856,7.15045392,2241.7,2241.2,7.62048723]
[1750652545062,10.1043,2242.0,2241.4,4.46148854]
[1750652545355,0.2643116,2242.2,2241.7,0.7618]
[1750652545669,0.0597,2242.1,2241.7,0.7618]
[1750652546345,0.0597,2242.1,2241.6,0.55]
[1750652547055,7.41476552,2242.2,2241.6,2.2095188]
[1750652547670,0.0597,2242.1,2241.6,2.2095188]
[1750652547970,0.0597,2241.7,2241.5,3.11397888]
[1750652549546,7.19505392,2241.8,2241.5,3.11397888]
[1750652550355,0.0597,2241.7,2241.5,3.11397888]
[1750652550555,7.19505392,2241.8,2241.4,0.43851107]
[1750652550755,7.19505392,2241.8,2241.3,1.71404872]
[1750652550955,0.0597,2241.7,2241.3,1.71404872]
[1750652551156,7.19505392,2241.8,2241.3,1.71404872]
[1750652551583,0.0597,2241.7,2241.3,1.71404872]
[1750652552071,7.19505392,2241.8,2241.3,1.71404872]
[1750652552648,0.0597,2241.7,2241.3,1.71404872]
[1750652553247,0.0597,2241.7,2241.4,0.76569079]
[1750652553549,0.0597,2241.7,2241.3,1.71404872]
[1750652553754,0.0597,2241.7,2241.3,2.15429382]
[1750652554160,7.19505392,2241.8,2241.3,2.15429382]
[1750652554478,0.0597,2241.7,2241.3,2.15429382]
[1750652554677,7.19505392,2241.8,2241.3,2.15429382]
[1750652554879,0.0597,2241.7,2241.3,2.15429382]
[1750652555087,0.0597,2241.7,2241.4,0.84971277]
[1750652556885,0.1043,2241.8,2241.4,0.84971277]
[1750652557052,0.0597,2241.8,2241.4,0.78278067]
[1750652557249,0.0597,2241.8,2241.4,5.30056234]
[1750652557585,0.0597,2242.1,2241.6,5.2311727]
[1750652557787,0.0597,2242.1,2241.7,0.0564]
[1750652558774,0.0597,2242.1,2241.6,1.25103384]
[1750652561301,0.0597,2242.1,2241.6,1.30743384]
[1750652561456,0.0597,2242.1,2241.6,5.76847213]
[1750652562376,0.0597,2242.1,2241.6,1.30743384]
[1750652563989,0.0597,2242.1,2241.6,5.7685117]
[1750652564169,0.0597,2242.1,2241.7,0.58131184]
[1750652564486,0.0597,2242.1,2241.7,5.09856128]
[1750652564700,0.2643116,2242.2,2241.8,0.0564]
[1750652564854,0.2643116,2242.2,2241.8,4.51699759]
[1750652565186,0.2197116,2242.2,2242.0,5.24398897]
[1750652565376,0.2197116,2242.2,2242.0,5.30038897]
[1750652565590,0.2197116,2242.2,2242.0,8.41436785]
[1750652565954,0.2197116,2242.2,2242.1,4.46010436]
[1750652566205,0.2197116,2242.2,2242.1,4.51650436]
[1750652566392,0.2197116,2242.2,2242.1,5.94460424]
[1750652567089,0.2197116,2242.2,2242.1,6.49460424]
[1750652567255,0.2197116,2242.2,2242.1,6.45000777]
[1750652567976,0.2197116,2242.2,2242.1,10.39228102]
[1750652568156,0.2197116,2242.2,2242.1,10.34768665]
[1750652569874,0.2197116,2242.2,2242.1,20.29128665]
[1750652570083,0.2197116,2242.2,2242.1,29.43468665]
[1750652572298,0.10080079,2242.2,2242.1,29.43468665]
[1750652572467,0.0446,2243.2,2242.8,4.45863756]
[1750652572663,0.0446,2243.2,2242.9,4.50308188]
[1750652572884,0.0576,2243.3,2242.9,4.50308188]
[1750652573089,0.0576,2243.3,2242.9,0.04458339]
[1750652573472,0.1022,2243.4,2242.9,0.10098339]
[1750652573672,0.0446,2243.4,2242.9,2.26039506]
[1750652573873,0.0446,2243.4,2242.9,2.20399506]
[1750652573874,0.0576,2243.2,2242.9,2.20399506]
[1750652574076,0.0576,2243.0,2242.7,3.93447888]
[1750652574397,7.20805392,2242.9,2242.7,3.11397888]
[1750652574600,7.15045392,2243.3,2242.7,3.11397888]
[1750652574799,0.1022,2243.2,2242.8,0.0564]
[1750652575109,0.0446,2243.2,2242.7,3.11397888]
[1750652575322,0.0576,2243.0,2242.7,4.99297888]
[1750652575520,0.0576,2243.0,2242.7,6.73611818]
[1750652576806,0.0576,2243.0,2242.7,7.1835236]
[1750652577280,0.0576,2243.0,2242.7,4.06954472]
[1750652577908,0.1022,2243.2,2242.7,8.52832447]
[1750652578068,7.15045392,2243.3,2242.8,1.4139]
[1750652578271,0.0446,2243.4,2242.8,1.4139]
[1750652578272,0.1022,2243.4,2242.9,1.09520531]
[1750652578497,0.1022,2243.4,2242.9,1.05062245]
[1750652578803,0.1022,2243.4,2242.9,5.50902301]
[1750652578966,0.1022,2243.4,2242.9,1.05062245]
[1750652579174,0.1022,2243.4,2242.9,0.99422245]
[1750652579175,0.0576,2243.3,2242.9,0.99422245]
[1750652579475,7.20805392,2243.3,2242.9,0.99422245]
[1750652579772,7.15045392,2243.1,2242.8,3.11397888]
[1750652579972,0.0576,2243.0,2242.8,3.11397888]
[1750652580603,7.15045392,2243.1,2242.8,3.11397888]
[1750652580818,0.0446,2243.0,2242.8,3.11397888]
[1750652580973,0.0576,2242.9,2242.8,3.11397888]
[1750652581374,0.1022,2243.0,2242.8,3.11397888]
[1750652581880,0.0576,2243.0,2242.8,3.11397888]
[1750652582707,7.15045392,2243.1,2242.8,3.11397888]
[1750652582880,0.0576,2243.0,2242.8,3.11397888]
[1750652583086,0.0576,2243.0,2242.7,0.44740542]
[1750652583087,0.1022,2242.8,2242.7,0.44740542]
[1750652583300,0.1022,2242.8,2242.5,13.54417957]
[1750652583500,0.0446,2242.8,2242.5,9.085]
[1750652583709,0.0576,2242.7,2242.5,9.085]
[1750652584603,10.0,2243.4,2242.4,3.11397888]
[1750652584604,0.0446,2242.5,2242.4,3.11397888]
[1750652584806,0.0576,2242.6,2242.4,3.11397888]
[1750652585876,0.0446,2242.7,2242.4,3.11397888]
[1750652586077,0.0576,2242.6,2242.4,3.11397888]
[1750652586273,0.1022,2242.7,2242.4,3.11397888]
[1750652586501,0.0446,2242.7,2242.4,3.11397888]
[1750652586776,0.0576,2242.8,2242.4,3.9915867]
[1750652586976,7.19505392,2243.1,2242.5,0.7591]
[1750652587172,0.0576,2243.0,2242.5,5.21840536]
[1750652588012,0.0576,2243.0,2242.5,5.27480536]
[1750652588181,0.0576,2243.0,2242.6,0.83887842]
[1750652588381,0.0576,2243.0,2242.5,5.27480536]
[1750652588686,0.0576,2243.0,2242.5,0.7591]
[1750652588890,0.0576,2242.8,2242.5,0.55]
[1750652589285,0.0576,2242.8,2242.4,3.11397888]
[1750652590177,0.0576,2242.8,2242.4,3.15856843]
[1750652590380,0.0576,2242.8,2242.4,3.11397888]
[1750652590683,7.15045392,2242.9,2242.4,3.11397888]
[1750652590915,0.0576,2242.7,2242.4,3.11397888]
[1750652591621,0.1022,2242.8,2242.4,3.11397888]
[1750652591834,0.0446,2242.8,2242.4,3.11397888]
[1750652592323,0.1022,2242.8,2242.4,3.11397888]
[1750652594326,0.0446,2242.8,2242.4,3.11397888]
[1750652594514,0.0572,2242.7,2242.4,3.11397888]
[1750652594704,0.0572,2242.6,2242.4,3.11397888]
[1750652594907,0.0572,2242.3,2240.9,0.7763]
[1750652595198,17.25225392,2241.9,2241.1,4.96921444]
[1750652595403,0.0572,2241.8,2241.1,0.50712433]
[1750652595603,0.0572,2241.8,2241.1,0.45072433]
[1750652595822,7.20765392,2241.3,2240.9,0.7763]
[1750652596195,0.0572,2241.3,2240.9,0.7763]
[1750652596393,1.398513,2241.3,2240.9,0.7763]
[1750652597231,1.341313,2241.3,2240.9,0.8327]
[1750652598203,0.1018,2241.5,2240.9,0.87731944]
[1750652598414,0.0446,2241.7,2241.2,0.55]
[1750652598621,1.398345,2241.8,2241.3,1.29980807]
[1750652598814,0.0572,2241.8,2241.3,1.29980807]
[1750652599019,1.398314,2241.8,2241.3,1.29980807]
[1750652599452,0.0572,2241.7,2241.3,1.29980807]
[1750652599647,0.0572,2241.7,2241.3,0.7986]
[1750652600499,1.398314,2241.8,2241.3,5.2602775]
[1750652600696,0.0572,2242.0,2241.5,0.0564]
[1750652600899,0.0446,2242.1,2241.5,0.0564]
[1750652601100,0.0572,2242.0,2241.4,3.66397888]
[1750652601343,0.0572,2242.0,2241.5,0.89242175]
[1750652601714,0.0446,2242.1,2241.5,0.89242175]
[1750652602227,0.0572,2242.0,2241.5,0.89242175]
[1750652602409,0.0572,2242.0,2241.5,0.94882175]
[1750652605336,0.1018,2242.1,2241.7,0.7629]
[1750652605523,0.0572,2242.1,2241.7,0.7629]
[1750652605727,0.0572,2242.1,2241.7,1.38465709]
[1750652606730,0.0572,2242.1,2241.7,0.7629]
[1750652607740,0.0446,2242.3,2241.7,0.8193]
[1750652608409,0.0446,2242.3,2241.7,0.7629]
[1750652609512,0.0572,2242.2,2241.7,0.7629]
[1750652610539,0.0572,2242.2,2241.7,0.8193]
[1750652610839,0.0572,2242.2,2241.7,1.74798926]
[1750652612815,0.0572,2242.2,2241.7,1.69158926]
[1750652613047,0.1018,2242.3,2241.8,0.0564]
[1750652613254,1.340797,2242.4,2241.8,0.0564]
[1750652613452,1.397997,2242.4,2241.8,0.10100223]
[1750652613614,1.397997,2242.4,2241.8,1.03776868]
[1750652614452,1.340797,2242.4,2242.0,0.7568]
[1750652614644,0.0572,2242.4,2242.0,0.7568]
[1750652616933,1.9266,2242.7,2242.0,0.8132]
[1750652617251,0.0572,2242.6,2242.0,0.8132]
[1750652617440,0.0572,2242.8,2242.2,0.7825]
[1750652618253,7.09815434,2242.6,2242.2,0.7825]